bitfinex/quotes_BTCUSD_20220202
["timestamp","ask_amount","ask_price","bid_price","bid_amount"]
[1643842251678,0.0011,37163.0,37157.0,0.0541]
[1643842251878,0.00077605,37161.0,37157.0,0.0541]
[1643842252884,0.0011,37163.0,37157.0,0.0541]
[1643842253081,0.00077606,37161.0,37157.0,0.0541]
[1643842253981,0.0011,37163.0,37157.0,0.0541]
[1643842254180,0.00077606,37161.0,37157.0,0.0541]
[1643842255344,0.0011,37163.0,37158.0,0.64848163]
[1643842255549,0.00072145,37161.0,37159.0,0.0541]
[1643842255844,0.00072145,37161.0,37160.0,0.209564]
[1643842256044,0.00072145,37161.0,37160.0,0.263664]
[1643842256543,0.0011,37163.0,37160.0,0.263664]
[1643842256744,0.00072144,37162.0,37160.0,0.263664]
[1643842257644,0.0011,37163.0,37160.0,0.263664]
[1643842257844,0.00182144,37163.0,37160.0,0.263664]
[1643842258886,0.0011,37163.0,37160.0,0.263664]
[1643842259090,0.00182143,37163.0,37160.0,0.263664]
[1643842260089,0.0011,37163.0,37160.0,0.263664]
[1643842260288,0.00182612,37163.0,37160.0,0.263664]
[1643842261292,0.0011,37163.0,37160.0,0.263664]
[1643842261492,0.00182612,37163.0,37160.0,0.263664]
[1643842262523,0.0011,37163.0,37160.0,0.263664]
[1643842262722,0.00182612,37163.0,37160.0,0.263664]
[1643842263722,0.0011,37163.0,37160.0,0.263664]
[1643842263925,0.00182561,37163.0,37160.0,0.263664]
[1643842264824,0.0011,37163.0,37160.0,0.263664]
[1643842265024,0.0011,37163.0,37160.0,0.0541]
[1643842265224,0.00182561,37163.0,37160.0,0.0541]
[1643842266024,0.0011,37163.0,37160.0,0.0541]
[1643842266275,0.00182561,37163.0,37160.0,0.0541]
[1643842266481,0.00182561,37163.0,37160.0,0.04869001]
[1643842267279,0.0011,37163.0,37160.0,0.04869001]
[1643842267480,0.00182567,37163.0,37160.0,0.04869001]
[1643842267983,0.00182567,37163.0,37156.0,0.00072581]
[1643842268579,0.0011,37163.0,37154.0,0.29771496]
[1643842268780,0.0011,37163.0,37156.0,0.00072579]
[1643842268781,0.00072569,37161.0,37156.0,0.00072579]
[1643842269579,0.0011,37163.0,37154.0,0.29771496]
[1643842269780,0.0011,37163.0,37156.0,0.00072578]
[1643842270030,0.0007257,37160.0,37156.0,0.00072578]
[1643842270231,0.0007257,37160.0,37157.0,0.350497]
[1643842270632,0.0007257,37160.0,37156.0,0.00072578]
[1643842270831,0.0011,37163.0,37153.0,0.07285958]
[1643842271035,0.00072569,37160.0,37156.0,0.00072577]
[1643842272034,0.0011,37163.0,37153.0,0.0541]
[1643842272332,0.0007257,37160.0,37156.0,0.00072577]
[1643842273331,0.0011,37163.0,37153.0,0.0541]
[1643842273535,0.0007257,37160.0,37156.0,0.00072577]
[1643842274580,0.0011,37163.0,37156.0,0.00072576]
[1643842274780,0.00072569,37160.0,37156.0,0.00072576]
[1643842275784,0.0011,37163.0,37156.0,0.00072576]
[1643842275982,0.00072569,37160.0,37156.0,0.00072576]
[1643842276781,0.00072569,37160.0,37153.0,0.02074391]
[1643842276982,1.73025829,37158.0,37156.0,0.00072576]
[1643842277424,1.88025829,37158.0,37156.0,0.00072576]
[1643842277633,0.15,37158.0,37156.0,0.00072576]
[1643842278126,0.15,37158.0,37153.0,0.01839782]
[1643842278330,0.05,37158.0,37155.0,0.00072577]
[1643842278731,0.00072568,37160.0,37155.0,0.00072577]
[1643842279426,0.00072569,37160.0,37156.0,0.00072577]
[1643842280426,0.53151573,37162.0,37151.0,0.25]
[1643842280627,0.00072569,37160.0,37156.0,0.00072577]
[1643842281678,0.53151573,37162.0,37153.0,0.01906871]
[1643842281879,0.53151573,37162.0,37156.0,0.00035848]
[1643842282878,0.53151573,37162.0,37153.0,0.01906871]
[1643842283080,0.34079004,37161.0,37157.0,0.00035848]
[1643842283280,0.44079004,37161.0,37157.0,0.00035848]
[1643842283482,0.350497,37160.0,37157.0,0.00035848]
[1643842283681,0.34079004,37160.0,37157.0,0.00035848]
[1643842283884,0.44079004,37160.0,37157.0,0.00035848]
[1643842284083,0.44079004,37160.0,37151.0,0.01917417]
[1643842284084,0.49079004,37160.0,37151.0,0.01917417]
[1643842284283,0.49079004,37160.0,37157.0,0.00035848]
[1643842285135,0.05,37159.0,37157.0,0.00035848]
[1643842285336,0.49079004,37160.0,37147.0,0.1232]
[1643842285536,0.34079004,37159.0,37157.0,0.00075249]
[1643842285936,0.600497,37158.0,37157.0,0.00075249]
[1643842286236,0.850497,37158.0,37157.0,0.00075249]
[1643842286440,0.700497,37158.0,37147.0,0.1232]
[1643842286637,0.69079004,37158.0,37156.0,0.0007525]
[1643842286836,0.600497,37157.0,37156.0,0.0007525]
[1643842287035,0.850497,37157.0,37156.0,0.0007525]
[1643842287237,1.000497,37157.0,37156.0,0.0007525]
[1643842287636,1.000497,37157.0,37147.0,0.1232]
[1643842287637,1.34128704,37157.0,37147.0,0.1232]
[1643842287836,1.34128704,37157.0,37155.0,0.00075251]
[1643842287837,0.74079004,37157.0,37155.0,0.00075251]
[1643842288037,0.600497,37156.0,37155.0,0.00075251]
[1643842288439,0.700497,37156.0,37155.0,0.00075251]
[1643842288676,1.32761867,37156.0,37155.0,0.00075251]
[1643842288876,1.04128704,37156.0,37142.0,0.92892]
[1643842289084,1.04128704,37156.0,37154.0,0.00075251]
[1643842289085,0.34079004,37155.0,37154.0,0.00075251]
[1643842289377,0.84128704,37155.0,37154.0,0.00075251]
[1643842289578,0.500497,37155.0,37154.0,0.00075251]
[1643842290179,0.500497,37155.0,37142.0,1.22971615]
[1643842290378,0.15,37155.0,37153.0,0.00071467]
[1643842290578,0.69266143,37154.0,37153.0,0.00071467]
[1643842291180,0.69266143,37154.0,37144.0,0.29963006]
[1643842291381,0.49216443,37154.0,37152.0,0.00071468]
[1643842291583,0.69266143,37153.0,37152.0,0.00071468]
[1643842291780,0.500497,37153.0,37152.0,0.00071468]
[1643842291980,0.15,37153.0,37152.0,0.00071468]
[1643842292439,0.500497,37153.0,37142.0,0.32122792]
[1643842292740,0.34214442,37152.0,37151.0,0.00071468]
[1643842292939,0.39214442,37152.0,37151.0,0.00071468]
[1643842293240,0.15,37152.0,37151.0,0.00071468]
[1643842293639,0.15,37152.0,37140.0,0.31382932]
[1643842293842,0.49214442,37152.0,37150.0,0.00072851]
[1643842294243,0.15,37152.0,37150.0,0.00072851]
[1643842294640,0.05,37152.0,37150.0,0.00072851]
[1643842294841,0.05,37152.0,37140.0,0.30209894]
[1643842295041,0.39214442,37152.0,37149.0,0.00072851]
[1643842295342,0.49214442,37152.0,37149.0,0.00072851]
[1643842295541,0.15,37152.0,37149.0,0.00072851]
[1643842296176,0.15,37152.0,37140.0,0.2933499]
[1643842296381,0.15,37152.0,37149.0,0.00072852]
[1643842296576,0.05,37152.0,37149.0,0.00072852]
[1643842297378,0.05,37152.0,37140.0,0.3038171]
[1643842297677,0.05,37152.0,37149.0,0.00072759]
[1643842298478,0.05,37152.0,37140.0,0.3038171]
[1643842298678,0.05,37152.0,37149.0,0.00072759]
[1643842299679,0.05,37152.0,37144.0,0.01972793]
[1643842299929,0.05,37152.0,37149.0,0.00072759]
[1643842300533,0.54214442,37154.0,37149.0,0.00072759]
[1643842300934,0.54214442,37154.0,37142.0,0.29471375]
[1643842301131,0.54214442,37154.0,37150.0,0.00072764]
[1643842302135,0.54214442,37154.0,37144.0,0.02148273]
[1643842302333,0.54214442,37154.0,37150.0,0.00072764]
[1643842303335,0.54214442,37154.0,37142.0,0.29750849]
[1643842303536,0.54214442,37154.0,37150.0,0.00072764]
[1643842303977,0.34214442,37153.0,37150.0,0.00072764]
[1643842304382,0.44214442,37153.0,37150.0,0.00062158]
[1643842304585,0.44214442,37153.0,37140.0,0.3176996]
[1643842304779,0.44214442,37153.0,37150.0,0.00072764]
[1643842305378,0.1,37153.0,37150.0,0.00072764]
[1643842305879,0.54214442,37154.0,37142.0,0.30249977]
[1643842306079,0.54214442,37154.0,37140.0,0.31864656]
[1643842306281,0.54214442,37154.0,37142.0,0.30003584]
[1643842306481,0.54214442,37154.0,37140.0,0.31690762]
[1643842306482,0.2,37154.0,37140.0,0.31690762]
[1643842306879,0.1,37154.0,37142.0,0.29662501]
[1643842307083,0.05,37154.0,37141.0,0.95209493]
[1643842307281,0.067319,37154.0,37141.0,0.95209493]
[1643842307530,0.067319,37154.0,37142.0,0.29357234]
[1643842307929,0.067319,37154.0,37141.0,0.95209493]
[1643842308131,0.05,37155.0,37142.0,0.30068197]
[1643842308331,0.05,37155.0,37146.0,0.00077671]
[1643842309131,0.33514262,37155.0,37146.0,0.00077671]
[1643842309333,0.43514262,37155.0,37141.0,0.95293344]
[1643842309533,0.43514262,37155.0,37149.0,0.00072208]
[1643842309736,0.350497,37154.0,37149.0,0.00072208]
[1643842309937,0.0541,37153.0,37149.0,0.00072208]
[1643842310135,0.350497,37152.0,37149.0,0.00072208]
[1643842310343,0.450497,37152.0,37149.0,0.00072208]
[1643842310535,0.450497,37152.0,37141.0,0.95293344]
[1643842310737,0.1,37152.0,37149.0,0.00072208]
[1643842310935,0.350497,37151.0,37149.0,0.00072208]
[1643842311384,0.450497,37151.0,37149.0,0.00072208]
[1643842311782,0.450497,37151.0,37141.0,0.5482]
[1643842311980,0.067325,37150.0,37148.0,0.00072209]
[1643842312180,0.350497,37149.0,37148.0,0.00072209]
[1643842312384,0.450497,37149.0,37148.0,0.00072209]
[1643842312586,0.97155706,37149.0,37148.0,0.00072209]
[1643842312784,1.76696002,37149.0,37148.0,0.00072209]
[1643842312983,0.067344,37145.0,37130.0,0.1206]
[1643842313185,0.0541,37144.0,37131.0,0.00288963]
[1643842313383,0.067344,37142.0,37131.0,0.00288963]
[1643842313584,0.202032,37142.0,37131.0,0.00288963]
[1643842313784,0.350497,37141.0,37131.0,0.00288963]
[1643842313983,0.067349,37138.0,37131.0,0.00288963]
[1643842314185,0.067349,37138.0,37129.0,0.25]
[1643842314385,0.36697806,37137.0,37134.0,0.00072678]
[1643842314587,0.202079,37136.0,37134.0,0.00072678]
[1643842314785,0.850497,37135.0,37134.0,0.00072678]
[1643842315237,0.850497,37135.0,37120.0,0.78405642]
[1643842315238,1.004597,37135.0,37120.0,0.78405642]
[1643842315533,0.067371,37131.0,37120.0,0.78405642]
[1643842315734,0.400497,37130.0,37127.0,0.00290762]
[1643842315933,0.500497,37130.0,37127.0,0.00290762]
[1643842316530,0.500497,37130.0,37120.0,0.78405642]
[1643842316531,0.067373,37128.0,37120.0,0.78405642]
[1643842316732,0.64304598,37127.0,37121.0,0.00290786]
[1643842316933,0.067373,37126.0,37121.0,0.00290786]
[1643842317232,0.28295453,37125.0,37121.0,0.00290786]
[1643842317533,0.33295453,37125.0,37121.0,0.00290786]
[1643842317737,0.33295453,37125.0,37120.0,0.78405642]
[1643842317934,0.43295453,37125.0,37121.0,0.00072651]
[1643842318987,0.067373,37124.0,37120.0,0.78405642]
[1643842319188,0.117373,37124.0,37121.0,0.00072651]
[1643842319989,0.117373,37124.0,37120.0,0.78405642]
[1643842320192,0.117373,37124.0,37121.0,0.00072652]
[1643842321289,0.117373,37124.0,37120.0,0.78405642]
[1643842321491,0.117373,37124.0,37121.0,0.00072655]
[1643842321694,0.35793756,37123.0,37121.0,0.00072655]
[1643842321893,0.53711069,37122.0,37121.0,0.00072655]
[1643842322092,0.99170769,37122.0,37121.0,0.00072655]
[1643842322292,1.09170769,37122.0,37121.0,0.00072655]
[1643842322540,1.09170769,37122.0,37120.0,0.78405642]
[1643842322740,0.89424316,37121.0,37120.0,0.78478298]
[1643842323045,1.09834316,37121.0,37120.0,0.78478298]
[1643842323440,1.16572516,37121.0,37120.0,0.78478298]
[1643842323640,1.16572516,37121.0,37120.0,0.78405642]
[1643842324642,0.86162516,37121.0,37120.0,0.78405642]
[1643842326282,0.85662516,37121.0,37120.0,0.78405642]
[1643842327083,0.067382,37121.0,37120.0,1.08368648]
[1643842327285,0.202157,37127.0,37120.0,1.08368648]
[1643842327286,0.55,37134.0,37120.0,0.79227709]
[1643842327486,0.5,37133.0,37121.0,0.29963006]
[1643842327686,0.5,37133.0,37120.0,0.78405642]
[1643842327883,0.5,37134.0,37121.0,0.29963006]
[1643842328082,0.19254162,37138.0,37120.0,0.78405642]
[1643842328286,0.29963006,37137.0,37120.0,0.78405642]
[1643842328686,0.29963006,37137.0,37127.0,0.00072652]
[1643842328985,0.41785,37136.0,37127.0,0.00072652]
[1643842329784,0.51785,37136.0,37124.0,0.31260506]
[1643842330038,0.167353,37136.0,37130.0,0.0007265]
[1643842330238,0.350497,37135.0,37130.0,0.0007265]
[1643842330742,0.450497,37135.0,37130.0,0.0007265]
[1643842330941,0.450497,37135.0,37127.0,0.0541]
[1643842331141,0.05,37134.0,37131.0,0.00072649]
[1643842331338,0.350497,37133.0,37131.0,0.00072649]
[1643842331540,0.400497,37133.0,37131.0,0.00072649]
[1643842331739,0.500497,37133.0,37131.0,0.00072649]
[1643842332139,0.500497,37133.0,37127.0,0.0541]
[1643842332339,0.15,37133.0,37130.0,0.00072649]
[1643842332543,0.350497,37132.0,37130.0,0.00072649]
[1643842332740,0.68227196,37132.0,37130.0,0.00045762]
[1643842332941,0.78227196,37132.0,37130.0,0.00045762]
[1643842333141,0.79162345,37132.0,37130.0,0.00045762]
[1643842333342,0.79154082,37132.0,37125.0,0.01878932]
[1643842333545,0.28536953,37131.0,37125.0,0.01878932]
[1643842333791,0.350497,37130.0,37125.0,0.01878932]
[1643842333990,0.417861,37130.0,37125.0,0.01878932]
[1643842334192,0.567861,37130.0,37125.0,0.01878932]
[1643842334392,0.635225,37130.0,37125.0,0.01878932]
[1643842334589,0.05,37129.0,37125.0,0.01878932]
[1643842334790,0.05,37129.0,37126.0,0.00035842]
[1643842335090,0.350497,37128.0,37126.0,0.00035842]
[1643842335292,0.2806438,37127.0,37126.0,0.00035842]
[1643842335492,0.6811408,37127.0,37126.0,0.00035842]
[1643842335691,0.400497,37127.0,37120.0,0.80244664]
[1643842335894,0.43133085,37127.0,37125.0,0.00077671]
[1643842336096,0.15,37127.0,37125.0,0.00077671]
[1643842336793,0.05,37127.0,37125.0,0.00077671]
[1643842336995,0.05,37127.0,37120.0,0.80244664]
[1643842336996,0.63869586,37126.0,37120.0,0.80244664]
[1643842337196,0.167374,37125.0,37124.0,0.00077672]
[1643842337442,1.00385309,37125.0,37124.0,0.00077672]
[1643842337841,1.10385309,37125.0,37124.0,0.00077672]
[1643842338040,1.10385309,37125.0,37120.0,0.80305474]
[1643842338245,0.400497,37124.0,37123.0,0.00077673]
[1643842338444,0.98161088,37124.0,37123.0,0.00077673]
[1643842338644,1.08161088,37124.0,37123.0,0.00077673]
[1643842339242,1.08161088,37124.0,37120.0,0.80305474]
[1643842339445,0.134756,37123.0,37122.0,0.00077674]
[1643842339643,0.78460867,37123.0,37122.0,0.00077674]
[1643842339844,0.88460867,37123.0,37122.0,0.00077674]
[1643842340443,0.88460867,37123.0,37120.0,0.78405642]
[1643842340644,0.88460867,37123.0,37121.0,0.00077675]
[1643842340645,0.350497,37122.0,37121.0,0.00077675]
[1643842340845,0.815891,37122.0,37121.0,0.00077675]
[1643842341044,0.765891,37122.0,37121.0,0.00077675]
[1643842341686,0.765891,37122.0,37120.0,0.78405642]
[1643842341887,0.765891,37122.0,37120.0,0.78483318]
[1643842342087,0.28361969,37121.0,37120.0,0.78483318]
[1643842342286,0.63411669,37121.0,37120.0,0.78483318]
[1643842342485,0.73411669,37121.0,37120.0,0.78483318]
[1643842342887,0.450497,37121.0,37120.0,0.78405642]
[1643842345337,0.73432088,37121.0,37120.0,0.78405642]
[1643842347138,0.93432088,37121.0,37120.0,0.78405642]
[1643842350691,0.650497,37121.0,37120.0,0.78405642]
[1643842351492,0.717881,37121.0,37120.0,0.78405642]
[1643842352742,0.967881,37121.0,37120.0,0.25825628]
[1643842352944,0.717881,37121.0,37120.0,0.25825628]
[1643842353144,1.01092436,37121.0,37120.0,0.25825628]
[1643842357014,0.717881,37121.0,37120.0,0.25825628]
[1643842360844,0.067378,37123.0,37121.0,0.25]
[1643842360845,0.050379,37123.0,37121.0,0.25]
[1643842361041,0.5,37125.0,37121.0,0.25]
[1643842361243,2.8,37130.0,37122.0,0.404667]
[1643842361440,2.8,37130.0,37122.0,0.0541]
[1643842362041,2.8,37130.0,37122.0,0.7303]
[1643842362240,2.8,37130.0,37124.0,0.13547774]
[1643842362543,2.8,37130.0,37125.0,0.0541]
[1643842363139,2.8,37130.0,37125.0,0.35478593]
[1643842363341,2.8,37130.0,37126.0,0.067347]
[1643842363540,2.8,37130.0,37127.0,0.0541]
[1643842363793,2.95,37130.0,37127.0,0.0541]
[1643842364192,2.95,37130.0,37127.0,0.0491]
[1643842364792,2.95,37130.0,37127.0,0.04987669]
[1643842365193,2.85,37130.0,37127.0,0.04987669]
[1643842365792,2.85,37130.0,37127.0,0.0491]
[1643842365992,2.85,37130.0,37127.0,0.04987669]
[1643842366995,2.85,37130.0,37127.0,0.0491]
[1643842367195,2.85,37130.0,37127.0,0.04987669]
[1643842367196,2.95,37130.0,37127.0,0.04987669]
[1643842367446,3.0,37130.0,37127.0,0.04987669]
[1643842367647,0.350567,37129.0,37127.0,0.04987669]
[1643842367846,0.73123904,37129.0,37127.0,0.04987669]
[1643842368048,0.450567,37129.0,37127.0,0.0491]
[1643842368446,0.51793,37129.0,37127.0,0.0491]
[1643842370649,0.450567,37129.0,37127.0,0.0491]
[1643842372196,0.73521358,37129.0,37127.0,0.0491]
[1643842372590,0.450567,37129.0,37127.0,0.0491]
[1643842372791,0.517929,37129.0,37127.0,0.0491]
[1643842373192,0.167362,37129.0,37127.0,0.0491]
[1643842373393,0.067362,37129.0,37127.0,0.0491]
[1643842373592,0.350567,37128.0,37127.0,0.0491]
[1643842373793,0.550567,37128.0,37127.0,0.0491]
[1643842373997,0.550567,37128.0,37126.0,0.00035887]
[1643842374193,0.267361,37128.0,37126.0,0.00035887]
[1643842375042,0.167361,37128.0,37126.0,0.00035887]
[1643842376441,0.1,37128.0,37126.0,0.00035887]
[1643842376641,0.1,37128.0,37122.0,0.0541]
[1643842376842,0.68324856,37127.0,37121.0,0.02166142]
[1643842377042,0.73324856,37127.0,37121.0,0.02166142]
[1643842377243,0.83324856,37127.0,37120.0,0.20965262]
[1643842377644,0.04341837,37122.0,37120.0,0.20965262]
[1643842380289,0.09341837,37122.0,37120.0,0.20965262]
[1643842380492,0.27702053,37121.0,37120.0,0.20965262]
[1643842380890,0.14341837,37122.0,37120.0,0.20965262]
[1643842380891,0.24341837,37122.0,37120.0,0.20965262]
[1643842381090,0.350567,37121.0,37120.0,0.20965262]
[1643842381296,0.72937603,37121.0,37120.0,0.20965262]
[1643842386050,0.73059899,37121.0,37120.0,0.20965262]
[1643842386494,0.450567,37121.0,37120.0,0.20965262]
[1643842398149,0.950567,37121.0,37120.0,0.20965262]
[1643842398549,1.050567,37121.0,37120.0,0.20965262]
[1643842400953,1.045567,37121.0,37120.0,0.20965262]
[1643842401401,1.112942,37121.0,37120.0,0.20965262]
[1643842401800,1.045567,37121.0,37120.0,0.20965262]
[1643842402602,0.695,37121.0,37120.0,0.20965262]
[1643842403805,0.545,37121.0,37120.0,0.20965262]
[1643842404205,0.595,37121.0,37120.0,0.20965262]
[1643842404943,0.1,37121.0,37120.0,0.20965262]
[1643842405143,0.05,37121.0,37120.0,0.20965262]
[1643842405344,0.5,37127.0,37120.0,0.20965262]
[1643842405544,0.05,37126.0,37120.0,0.20965262]
[1643842405747,0.05,37125.0,37120.0,0.20965262]
[1643842406345,0.05,37125.0,37121.0,0.00077741]
[1643842407146,0.05,37125.0,37120.0,0.20965262]
[1643842407547,0.55,37125.0,37121.0,0.0007774]
[1643842407948,0.65,37125.0,37121.0,0.0007774]
[1643842409095,0.717365,37125.0,37121.0,0.0007774]
[1643842409692,0.717365,37125.0,37120.0,0.20965262]
[1643842409894,0.717365,37125.0,37121.0,0.0007774]
[1643842410902,0.350567,37124.0,37120.0,0.20965262]
[1643842411093,0.350567,37124.0,37121.0,0.0007774]
[1643842411293,0.5,37123.0,37121.0,0.0007774]
[1643842412093,0.5,37123.0,37120.0,0.20965262]
[1643842412295,0.567368,37123.0,37120.0,0.21043003]
[1643842412545,0.067368,37123.0,37120.0,0.21043003]
[1643842413147,0.067368,37123.0,37120.0,0.20965262]
[1643842413548,0.067368,37123.0,37120.0,0.21043003]
[1643842414345,0.067368,37123.0,37120.0,0.20965262]
[1643842414545,0.067368,37123.0,37120.0,0.21043003]
[1643842415146,0.067363,37125.0,37120.0,0.21043003]
[1643842415546,0.067363,37125.0,37120.0,0.20965262]
[1643842415947,0.067363,37125.0,37121.0,0.00077741]
[1643842416195,0.117363,37125.0,37121.0,0.00077741]
[1643842416592,0.350567,37124.0,37121.0,0.00077741]
[1643842416794,0.15,37124.0,37120.0,0.20965262]
[1643842417004,0.217365,37124.0,37121.0,0.00077741]
[1643842417194,0.350567,37123.0,37121.0,0.00077741]
[1643842417397,0.450567,37123.0,37121.0,0.00077741]
[1643842417596,0.1,37123.0,37121.0,0.00077741]
[1643842418097,0.1,37123.0,37120.0,0.20965262]
[1643842418298,0.167366,37123.0,37120.0,0.21043003]
[1643842418596,0.117366,37123.0,37120.0,0.21043003]
[1643842419199,0.117366,37123.0,37120.0,0.20965262]
[1643842419398,0.117366,37123.0,37120.0,0.21043003]
[1643842420048,0.350567,37122.0,37120.0,0.21043003]
[1643842420252,0.602678,37122.0,37120.0,0.21043003]
[1643842420451,0.702678,37122.0,37120.0,0.20965262]
[1643842420651,0.05,37121.0,37120.0,0.20965262]
[1643842420850,0.400567,37121.0,37120.0,0.20965262]
[1643842421453,0.500567,37121.0,37120.0,0.20965262]
[1643842425993,0.500567,37121.0,37120.0,0.20958632]
[1643842435250,0.03428765,37119.0,37115.0,0.1125]
[1643842435452,0.16903365,37119.0,37114.0,0.00011905]
[1643842435654,0.26903365,37119.0,37113.0,0.00322921]
[1643842436053,0.26903365,37119.0,37113.0,0.00011905]
[1643842436252,0.26903365,37119.0,37112.0,0.00011905]
[1643842436869,0.26903365,37119.0,37110.0,0.00011905]
[1643842437456,0.26903365,37119.0,37113.0,0.00077689]
[1643842438456,0.26903365,37119.0,37112.0,0.00011905]
[1643842438710,0.26903365,37119.0,37109.0,0.34541348]
[1643842438711,0.26903365,37119.0,37114.0,0.00077688]
[1643842439612,0.26903365,37119.0,37112.0,0.00011905]
[1643842439613,0.067376,37118.0,37112.0,0.00011905]
[1643842439814,0.067376,37118.0,37115.0,0.00077688]
[1643842440411,0.350567,37117.0,37115.0,0.00077688]
[1643842440611,0.05,37116.0,37115.0,0.00077688]
[1643842440811,0.05,37116.0,37112.0,0.00011905]
[1643842441012,0.05,37116.0,37114.0,0.00077688]
[1643842441413,0.117375,37116.0,37114.0,0.00077688]
[1643842442012,0.117375,37116.0,37112.0,0.00011905]
[1643842442212,0.117375,37116.0,37113.0,0.00077689]
[1643842443443,0.117375,37116.0,37113.0,0.0007769]
[1643842444444,0.117375,37116.0,37112.0,0.00011905]
[1643842444646,0.117375,37116.0,37113.0,0.0007769]
[1643842445648,0.117375,37116.0,37112.0,0.00011905]
[1643842445847,0.117375,37116.0,37113.0,0.0007769]
[1643842446494,0.184755,37116.0,37113.0,0.0007769]
[1643842446699,0.350567,37115.0,37113.0,0.0007769]
[1643842446895,0.350567,37115.0,37112.0,0.00011905]
[1643842446896,0.167381,37115.0,37112.0,0.00011905]
[1643842447099,0.217381,37115.0,37113.0,0.0007769]
[1643842447495,0.05,37114.0,37113.0,0.0007769]
[1643842448098,0.117382,37114.0,37112.0,0.00011905]
[1643842448298,0.117382,37114.0,37112.0,0.00077691]
[1643842448897,0.05,37114.0,37112.0,0.00077691]
[1643842449297,0.117382,37114.0,37111.0,0.00891808]
[1643842449496,0.117382,37114.0,37111.0,0.00957594]
[1643842449696,0.05,37113.0,37111.0,0.00957594]
[1643842450349,0.1,37113.0,37111.0,0.00879903]
[1643842450547,0.05,37113.0,37111.0,0.00879903]
[1643842452453,0.05,37114.0,37111.0,0.00879903]
[1643842452757,0.05,37116.0,37111.0,0.00879903]
[1643842452957,0.32531224,37116.0,37111.0,0.009695]
[1643842453352,0.42531224,37116.0,37111.0,0.009695]
[1643842453553,0.350567,37115.0,37111.0,0.00957595]
[1643842453799,0.134766,37114.0,37111.0,0.00957595]
[1643842453996,0.134766,37114.0,37111.0,0.00879903]
[1643842454195,0.184766,37114.0,37111.0,0.00957595]
[1643842454796,0.05,37113.0,37111.0,0.00957595]
[1643842455196,0.05,37113.0,37111.0,0.00879903]
[1643842455397,0.05,37113.0,37112.0,0.88846163]
[1643842457197,0.05,37113.0,37112.0,0.68846163]
[1643842458254,0.68104476,37113.0,37112.0,0.68846163]
[1643842458647,0.500567,37113.0,37112.0,0.68846163]
[1643842458849,0.79374537,37113.0,37112.0,0.68846163]
[1643842459150,0.79374537,37113.0,37106.0,0.001]
[1643842459151,0.067399,37111.0,37106.0,0.001]
[1643842459349,0.485364,37110.0,37106.0,0.001]
[1643842459649,0.585364,37110.0,37106.0,0.001]
[1643842459848,0.685364,37110.0,37106.0,0.001]
[1643842460547,0.3098624,37109.0,37106.0,0.001]
[1643842460751,0.067399,37108.0,37106.0,0.001]
[1643842460950,0.417966,37108.0,37106.0,0.001]
[1643842461211,0.602767,37108.0,37106.0,0.001]
[1643842461413,0.756867,37108.0,37106.0,0.001]
[1643842461607,0.367398,37107.0,37106.0,0.001]
[1643842461807,0.872065,37107.0,37106.0,0.001]
[1643842462209,1.41742866,37107.0,37106.0,0.001]
[1643842462609,1.41742866,37107.0,37101.0,0.03083637]
[1643842462610,0.067418,37106.0,37101.0,0.03083637]
[1643842462810,0.47686146,37104.0,37101.0,0.02583637]
[1643842463010,0.404667,37103.0,37101.0,0.02583637]
[1643842463209,0.62876747,37103.0,37101.0,0.02583637]
[1643842463413,0.50940841,37102.0,37101.0,0.02583637]
[1643842463608,0.91407541,37102.0,37101.0,0.02583637]
[1643842463809,2.06407541,37102.0,37101.0,0.02583637]
[1643842464209,2.11407541,37102.0,37101.0,0.02583637]
[1643842464410,2.11407541,37102.0,37101.0,0.005]
[1643842464609,2.58131128,37102.0,37101.0,0.005]
[1643842465254,2.58131128,37102.0,37100.0,6.44e-06]
[1643842465255,0.752292,37101.0,37100.0,6.44e-06]
[1643842465456,0.752292,37101.0,37094.0,0.00310623]
[1643842465457,1.95526894,37101.0,37094.0,0.00310623]
[1643842465654,0.634876,37098.0,37094.0,0.00310623]
[1643842465853,0.26167678,37096.0,37094.0,0.00310623]
[1643842466059,0.722108,37095.0,37087.0,0.05]
[1643842466257,0.872108,37095.0,37087.0,0.05]
[1643842466454,0.06744096,37094.0,37087.0,0.05]
[1643842466655,0.350567,37093.0,37087.0,0.05]
[1643842466856,0.500567,37093.0,37078.0,0.1147]
[1643842467056,0.500567,37093.0,37079.0,0.31661554]
[1643842467456,0.568008,37093.0,37079.0,0.31661554]
[1643842467658,0.568008,37093.0,37079.0,0.05]
[1643842467659,1.13059434,37092.0,37079.0,0.05]
[1643842467857,1.63116134,37092.0,37079.0,0.05]
[1643842468060,1.88116134,37092.0,37079.0,0.05]
[1643842468260,1.93116134,37092.0,37079.0,0.05]
[1643842468460,2.43116134,37092.0,37079.0,0.05]
[1643842468705,2.43116134,37092.0,37090.0,0.00077595]
[1643842469602,2.43116134,37092.0,37079.0,0.05]
[1643842469801,2.43116134,37092.0,37090.0,0.00077595]
[1643842470803,2.43116134,37092.0,37079.0,0.05]
[1643842471004,2.43104926,37092.0,37090.0,0.00077595]
[1643842472104,2.43104926,37092.0,37079.0,0.05]
[1643842472465,2.18104926,37092.0,37091.0,0.86241653]
[1643842474566,1.85455492,37092.0,37091.0,0.86241653]
[1643842474968,1.85455492,37092.0,37091.0,0.86253226]
[1643842475767,1.85455492,37092.0,37091.0,0.86241653]
[1643842476399,1.85455492,37092.0,37091.0,0.86253226]
[1643842477001,1.85455492,37092.0,37091.0,0.86241653]
[1643842477002,1.86199548,37092.0,37091.0,0.86241653]
[1643842477602,1.86199548,37092.0,37091.0,0.86253226]
[1643842477905,2.11199548,37092.0,37091.0,0.86253226]
[1643842478305,2.11199548,37092.0,37091.0,0.86241653]
[1643842478505,1.86199548,37092.0,37091.0,0.86241653]
[1643842478905,2.11199548,37092.0,37091.0,0.86253226]
[1643842479107,2.11199548,37092.0,37091.0,0.10068438]
[1643842479108,2.36199548,37092.0,37091.0,0.10068438]
[1643842479505,2.11199548,37092.0,37091.0,0.10056865]
[1643842479706,1.86199548,37092.0,37091.0,0.10056865]
[1643842480151,1.86199548,37092.0,37091.0,0.10068438]
[1643842480752,1.80789548,37092.0,37091.0,0.10056865]
[1643842480954,2.05789548,37092.0,37091.0,0.10056865]